[Event "Fast Chess"]
[Site "ChessKid.com"]
[Date "2020.03.29"]
[Round "2"]
[White "Georgiev, Maximilian"]
[Black "Sasse, Gabriel"]
[Result "1/2-1/2"]
[ECO "C48"]
[WhiteElo "1264"]
[BlackElo "1190"]
[PlyCount "110"]
[EventDate "2020.??.??"]
[TimeControl "300+10"]
[WhiteClock "0:02:43"]
[BlackClock "0:03:08"]

1. e4 {[%emt 0:00:10]} e5 {[%emt 0:00:11]} 2. Nf3 {[%emt 0:00:10]} Nc6 {
[%emt 0:00:10]} 3. Bb5 {[%emt 0:00:11]} Bc5 {[%emt 0:00:10]} 4. Nc3 {[%emt 0:
00:11]} Nf6 {[%emt 0:00:11]} 5. h3 {[%emt 0:00:12]} h6 {[%emt 0:00:12]} 6. O-O
{[%emt 0:00:10]} O-O {[%emt 0:00:10]} 7. d3 {[%emt 0:00:10]} d6 {[%emt 0:00:11]
} 8. a3 {[%emt 0:00:11]} a6 {[%emt 0:00:13]} 9. Ba4 {[%emt 0:00:12]} b5 {
[%emt 0:00:11]} 10. Bb3 {[%emt 0:00:10]} b4 {[%emt 0:00:14]} 11. axb4 {[%emt 0:
00:11]} Bxb4 {[%emt 0:00:10]} 12. Nd5 {[%emt 0:00:12]} Nxd5 {[%emt 0:00:11]}
13. Bxd5 {[%emt 0:00:12]} Bb7 {[%emt 0:00:14]} 14. c3 {[%emt 0:00:14]} Bc5 {
[%emt 0:00:16]} 15. b4 {[%emt 0:00:11]} Bb6 {[%emt 0:00:14]} 16. c4 {[%emt 0:
00:13]} Qb8 {[%emt 0:00:14]} 17. Be3 {[%emt 0:00:20]} Bxe3 {[%emt 0:00:12]} 18.
fxe3 {[%emt 0:00:11]} Nxb4 {[%emt 0:00:11]} 19. Bxb7 {[%emt 0:00:12]} Qxb7 {
[%emt 0:00:11]} 20. Rb1 {[%emt 0:00:13]} a5 {[%emt 0:00:13]} 21. Rf2 {[%emt 0:
00:18]} c5 {[%emt 0:00:14]} 22. Rc2 {[%emt 0:00:11]} a4 {[%emt 0:00:12]} 23. d4
{[%emt 0:00:18]} exd4 {[%emt 0:00:11]} 24. exd4 {[%emt 0:00:11]} Nxc2 {[%emt 0:
00:10]} 25. Rxb7 {[%emt 0:00:12]} cxd4 {[%emt 0:00:14]} 26. Qxc2 {[%emt 0:00:
11]} Rfb8 {[%emt 0:00:16]} 27. Rxb8+ {[%emt 0:00:11]} Rxb8 {[%emt 0:00:11]} 28.
Nxd4 {[%emt 0:00:11]} Ra8 {[%emt 0:00:16]} 29. Nb5 {[%emt 0:00:13]} a3 {
[%emt 0:00:15]} 30. Nxa3 {[%emt 0:00:12]} Rxa3 {[%emt 0:00:12]} 31. Qb2 {
[%emt 0:00:14]} Re3 {[%emt 0:00:14]} 32. Qd2 {[%emt 0:00:12]} Rxe4 {[%emt 0:00:
14]} 33. Qxd6 {[%emt 0:00:11]} Rxc4 {[%emt 0:00:11]} 34. Qb8+ {[%emt 0:00:14]}
Kh7 {[%emt 0:00:13]} 35. Qb1+ {[%emt 0:00:11]} Kg8 {[%emt 0:00:13]} 36. Kf2 {
[%emt 0:00:11]} Rf4+ {[%emt 0:00:13]} 37. Kg3 {[%emt 0:00:12]} Rf6 {[%emt 0:00:
11]} 38. h4 {[%emt 0:00:12]} g5 {[%emt 0:00:11]} 39. h5 {[%emt 0:00:12]} Kg7 {
[%emt 0:00:21]} 40. Qe4 {[%emt 0:00:14]} Re6 {[%emt 0:00:15]} 41. Qd5 {[%emt 0:
00:14]} Re3+ {[%emt 0:00:24]} 42. Kf2 {[%emt 0:00:14]} Re6 {[%emt 0:00:16]} 43.
Qf5 {[%emt 0:00:12]} Rf6 {[%emt 0:00:11]} 44. g4 {[%emt 0:00:14]} Rxf5+ {
[%emt 0:00:13]} 45. gxf5 {[%emt 0:00:10]} Kf6 {[%emt 0:00:11]} 46. Kg3 {
[%emt 0:00:10]} Kxf5 {[%emt 0:00:11]} 47. Kh3 {[%emt 0:00:12]} Kf4 {[%emt 0:00:
12]} 48. Kg2 {[%emt 0:00:13]} g4 {[%emt 0:00:10]} 49. Kf2 {[%emt 0:00:12]} g3+
{[%emt 0:00:11]} 50. Kg2 {[%emt 0:00:11]} Kg4 {[%emt 0:00:11]} 51. Kg1 {
[%emt 0:00:12]} f5 {[%emt 0:00:11]} 52. Kg2 {[%emt 0:00:11]} f4 {[%emt 0:00:11]
} 53. Kh1 {[%emt 0:00:14]} f3 {[%emt 0:00:10]} 54. Kg1 {[%emt 0:00:11]} f2+ {
[%emt 0:00:11]} 55. Kf1 {[%emt 0:00:11]} Kf3 {[%emt 0:00:12] Game drawn by
stalemate} 1/2-1/2

[Event "Fast Chess"]
[Site "ChessKid.com"]
[Date "2020.03.29"]
[Round "2"]
[White "Hlinka, Patricia"]
[Black "Rosenkranz, Benjamin"]
[Result "1-0"]
[ECO "C24"]
[WhiteElo "1065"]
[BlackElo "1148"]
[PlyCount "47"]
[EventDate "2020.??.??"]
[TimeControl "300+10"]
[WhiteClock "0:02:15"]
[BlackClock "0:02:59"]

1. e4 {[%emt 0:00:10]} e5 {[%emt 0:00:12]} 2. Bc4 {[%emt 0:00:11]} Nf6 {
[%emt 0:00:15]} 3. d3 {[%emt 0:00:11]} d5 {[%emt 0:00:19]} 4. exd5 {[%emt 0:00:
13]} Nxd5 {[%emt 0:00:13]} 5. h4 {[%emt 0:00:18]} Nf4 {[%emt 0:00:14]} 6. Bxf4
{[%emt 0:00:15]} exf4 {[%emt 0:00:13]} 7. Qh5 {[%emt 0:00:15]} Qe7+ {[%emt 0:
00:21]} 8. Ne2 {[%emt 0:00:22]} Nc6 {[%emt 0:00:18]} 9. Nbc3 {[%emt 0:00:19]}
Nb4 {[%emt 0:00:16]} 10. Rc1 {[%emt 0:00:15]} Be6 {[%emt 0:00:20]} 11. Qb5+ {
[%emt 0:00:27]} Bd7 {[%emt 0:00:19]} 12. Qh5 {[%emt 0:00:23]} O-O-O {[%emt 0:
00:17]} 13. a3 {[%emt 0:00:10]} Nc6 {[%emt 0:00:16]} 14. Nd5 {[%emt 0:00:11]}
Qe5 {[%emt 0:00:42]} 15. Qxf7 {[%emt 0:00:26]} Re8 {[%emt 0:00:21]} 16. O-O {
[%emt 0:00:15]} Qxe2 {[%emt 0:00:15]} 17. Rfe1 {[%emt 0:00:12]} Qd2 {[%emt 0:
00:18]} 18. Rxe8+ {[%emt 0:00:14]} Bxe8 {[%emt 0:00:17]} 19. Qxe8+ {[%emt 0:00:
14]} Nd8 {[%emt 0:00:12]} 20. Rf1 {[%emt 0:00:15]} Qxc2 {[%emt 0:00:15]} 21.
Bb5 {[%emt 0:00:14]} Qxb2 {[%emt 0:00:18]} 22. Qd7+ {[%emt 0:00:12]} Kb8 {
[%emt 0:00:13]} 23. Qxc7+ {[%emt 0:00:10]} Ka8 {[%emt 0:00:14]} 24. Qc8# {
[%emt 0:00:10] NeatBouncyCone won by checkmate} 1-0

[Event "Fast Chess"]
[Site "ChessKid.com"]
[Date "2020.03.29"]
[Round "3"]
[White "Hlinka, Patricia"]
[Black "Georgiev, Maximilian"]
[Result "0-1"]
[ECO "C20"]
[WhiteElo "1061"]
[BlackElo "1268"]
[PlyCount "50"]
[EventDate "2020.??.??"]
[TimeControl "300+10"]
[WhiteClock "0:03:23"]
[BlackClock "0:02:21"]

1. e4 {[%emt 0:00:10]} e5 {[%emt 0:00:11]} 2. d3 {[%emt 0:00:11]} Nc6 {[%emt 0:
00:11]} 3. d4 {[%emt 0:00:16]} exd4 {[%emt 0:00:12]} 4. Bc4 {[%emt 0:00:11]}
Nf6 {[%emt 0:00:12]} 5. Bf4 {[%emt 0:00:11]} Nxe4 {[%emt 0:00:13]} 6. Qh5 {
[%emt 0:00:16]} g6 {[%emt 0:00:17]} 7. Qd5 {[%emt 0:00:12]} Qe7 {[%emt 0:00:25]
} 8. Bxc7 {[%emt 0:00:15]} Nc3+ {[%emt 0:00:12]} 9. Qe5 {[%emt 0:00:14]} Nxe5 {
[%emt 0:00:12]} 10. Bxe5 {[%emt 0:00:15]} Qxe5+ {[%emt 0:00:12]} 11. Kf1 {
[%emt 0:00:20]} Ne4 {[%emt 0:00:20]} 12. h4 {[%emt 0:00:23]} Nf6 {[%emt 0:00:
15]} 13. f4 {[%emt 0:00:18]} Qxf4+ {[%emt 0:00:13]} 14. Ke1 {[%emt 0:00:17]}
Bb4+ {[%emt 0:00:13]} 15. Kd1 {[%emt 0:00:14]} Qf2 {[%emt 0:00:20]} 16. Nh3 {
[%emt 0:00:17]} Qxg2 {[%emt 0:00:12]} 17. Re1+ {[%emt 0:00:18]} Kf8 {[%emt 0:
00:15]} 18. Nf4 {[%emt 0:00:19]} Qf3+ {[%emt 0:00:18]} 19. Be2 {[%emt 0:00:32]}
Qxf4 {[%emt 0:00:12]} 20. Bf1 {[%emt 0:00:18]} Bxe1 {[%emt 0:00:14]} 21. Kxe1 {
[%emt 0:00:14]} Qe3+ {[%emt 0:00:11]} 22. Kd1 {[%emt 0:00:13]} Qf2 {[%emt 0:00:
11]} 23. Bb5 {[%emt 0:00:25]} Ng4 {[%emt 0:00:18]} 24. c4 {[%emt 0:00:18]} Ne3+
{[%emt 0:00:12]} 25. Kc1 {[%emt 0:00:15]} Qe1# {[%emt 0:00:11] TallSnazzyBall
won by checkmate} 0-1

[Event "Fast Chess"]
[Site "ChessKid.com"]
[Date "2020.03.29"]
[Round "3"]
[White "Sasse, Gabriel"]
[Black "Rosenkranz, Benjamin"]
[Result "1-0"]
[ECO "C44"]
[WhiteElo "1197"]
[BlackElo "1139"]
[PlyCount "83"]
[EventDate "2020.??.??"]
[TimeControl "300+10"]
[BlackClock "0:01:56"]

1. e4 {[%emt 0:00:10]} e5 {[%emt 0:00:12]} 2. Nf3 {[%emt 0:00:09]} Nc6 {
[%emt 0:00:16]} 3. Ng1 {[%emt 0:00:09]} Nf6 {[%emt 0:00:18]} 4. Nf3 {[%emt 0:
00:09]} Nxe4 {[%emt 0:00:15]} 5. Bc4 {[%emt 0:00:09]} Bd6 {[%emt 0:00:19]} 6.
Nc3 {[%emt 0:00:09]} Nxc3 {[%emt 0:00:14]} 7. dxc3 {[%emt 0:00:12]} O-O {
[%emt 0:00:14]} 8. O-O {[%emt 0:00:16]} Bc5 {[%emt 0:00:18]} 9. Nh4 {[%emt 0:
00:14]} d6 {[%emt 0:00:15]} 10. Bd3 {[%emt 0:00:11]} Re8 {[%emt 0:00:20]} 11.
Qh5 {[%emt 0:00:16]} Kf8 {[%emt 0:00:15]} 12. Bg5 {[%emt 0:00:17]} Qd7 {
[%emt 0:00:19]} 13. Bf5 {[%emt 0:00:12]} Re6 {[%emt 0:00:22]} 14. Bxe6 {
[%emt 0:00:11]} Qxe6 {[%emt 0:00:12]} 15. Qxh7 {[%emt 0:00:12]} Ke8 {[%emt 0:
00:21]} 16. Qh8+ {[%emt 0:00:11]} Kd7 {[%emt 0:00:12]} 17. Qxg7 {[%emt 0:00:23]
} Ke8 {[%emt 0:00:25]} 18. Qg8+ {[%emt 0:00:21]} Kd7 {[%emt 0:00:15]} 19. Nf3 {
[%emt 0:00:37]} b6 {[%emt 0:00:32]} 20. Bh4 {[%emt 0:00:14]} Rb8 {[%emt 0:00:
16]} 21. Ng5 {[%emt 0:00:13]} Qe7 {[%emt 0:00:21]} 22. Nf3 {[%emt 0:00:15]} Qe8
{[%emt 0:00:16]} 23. Qxe8+ {[%emt 0:00:29]} Kxe8 {[%emt 0:00:12]} 24. g4 {
[%emt 0:00:18]} Ba6 {[%emt 0:00:14]} 25. Rfd1 {[%emt 0:00:21]} e4 {[%emt 0:00:
23]} 26. Ng5 {[%emt 0:00:14]} Be2 {[%emt 0:00:30]} 27. Re1 {[%emt 0:00:11]} Bc4
{[%emt 0:00:17]} 28. Nxe4 {[%emt 0:00:15]} Ne5 {[%emt 0:00:41]} 29. Bf6 {
[%emt 0:00:19]} Nxg4 {[%emt 0:00:19]} 30. Nxc5+ {[%emt 0:00:15]} Kf8 {[%emt 0:
00:22]} 31. Nd7+ {[%emt 0:00:12]} Kg8 {[%emt 0:00:14]} 32. Nxb8 {[%emt 0:00:11]
} Nxf6 {[%emt 0:00:12]} 33. Nc6 {[%emt 0:00:16]} Ng4 {[%emt 0:00:13]} 34. Re4 {
[%emt 0:00:13]} Bd5 {[%emt 0:00:19]} 35. Rxg4+ {[%emt 0:00:13]} Kh7 {[%emt 0:
00:13]} 36. Ne7 {[%emt 0:00:15]} Kh6 {[%emt 0:00:12]} 37. Kf1 {[%emt 0:00:15]}
Kh5 {[%emt 0:00:13]} 38. Rg8 {[%emt 0:00:12]} f6 {[%emt 0:00:13]} 39. Ke2 {
[%emt 0:00:13]} Bxg8 {[%emt 0:00:13]} 40. Nxg8 {[%emt 0:00:13]} d5 {[%emt 0:00:
13]} 41. Ke3 {[%emt 0:00:12]} f5 {[%emt 0:00:11]} 42. Kf4 {[%emt 0:00:11]
LimeFarActor won on time} 1-0

[Event "Fast Chess"]
[Site "ChessKid.com"]
[Date "2020.03.30"]
[Round "1"]
[White "Rosenkranz, Benjamin"]
[Black "Horvath, Alexander"]
[Result "0-1"]
[ECO "C42"]
[WhiteElo "1154"]
[BlackElo "1337"]
[PlyCount "36"]
[EventDate "2020.??.??"]
[TimeControl "600"]
[WhiteClock "0:07:59"]
[BlackClock "0:07:24"]

1. e4 {[%emt 0:00:06]} e5 {[%emt 0:00:03]} 2. Nf3 {[%emt 0:00:03]} Nf6 {
[%emt 0:00:02]} 3. Nxe5 {[%emt 0:00:06]} d6 {[%emt 0:00:03]} 4. Nf3 {[%emt 0:
00:04]} Nxe4 {[%emt 0:00:02]} 5. Nc3 {[%emt 0:00:09]} Nxc3 {[%emt 0:00:03]} 6.
dxc3 {[%emt 0:00:05]} Nc6 {[%emt 0:00:06]} 7. Qd5 {[%emt 0:00:06]} Be6 {
[%emt 0:00:08]} 8. Qe4 {[%emt 0:00:13]} d5 {[%emt 0:00:09]} 9. Qa4 {[%emt 0:00:
12]} Bd7 {[%emt 0:00:10]} 10. Qf4 {[%emt 0:00:20]} Bd6 {[%emt 0:00:06]} 11. Qd2
{[%emt 0:00:13]} Bg4 {[%emt 0:00:13]} 12. Be2 {[%emt 0:00:06]} Qe7 {[%emt 0:00:
02]} 13. O-O {[%emt 0:00:05]} Bxf3 {[%emt 0:00:02]} 14. Bxf3 {[%emt 0:00:02]}
O-O {[%emt 0:00:13]} 15. Qxd5 {[%emt 0:00:06]} Qh4 {[%emt 0:00:11]} 16. Re1 {
[%emt 0:00:12]} Qxh2+ {[%emt 0:00:16]} 17. Kf1 {[%emt 0:00:02]} Rfe8 {[%emt 0:
00:07]} 18. Rd1 {[%emt 0:00:27]} Qh1# {[%emt 0:00:06] KeenOrangeTeeth won by
checkmate} 0-1

[Event "Fast Chess"]
[Site "ChessKid.com"]
[Date "2020.03.30"]
[Round "1"]
[White "Li, Tobias"]
[Black "Li, Patrick"]
[Result "1-0"]
[ECO "C43"]
[WhiteElo "1327"]
[BlackElo "925"]
[PlyCount "49"]
[EventDate "2020.??.??"]
[TimeControl "600"]
[WhiteClock "0:06:29"]
[BlackClock "0:08:03"]

1. e4 {[%emt 0:00:02]} e5 {[%emt 0:00:04]} 2. Nf3 {[%emt 0:00:03]} Nc6 {
[%emt 0:00:04]} 3. d4 {[%emt 0:00:01]} Nf6 {[%emt 0:00:34]} 4. dxe5 {[%emt 0:
00:03]} Nxe4 {[%emt 0:00:09]} 5. Bd3 {[%emt 0:00:04]} Nc5 {[%emt 0:00:06]} 6.
Nc3 {[%emt 0:00:14]} Be7 {[%emt 0:00:10]} 7. O-O {[%emt 0:00:02]} O-O {[%emt 0:
00:19]} 8. h3 {[%emt 0:00:02]} Ne6 {[%emt 0:00:08]} 9. Re1 {[%emt 0:00:08]} Nf4
{[%emt 0:00:02]} 10. Bxf4 {[%emt 0:00:04]} d6 {[%emt 0:00:13]} 11. exd6 {
[%emt 0:00:02]} Bxd6 {[%emt 0:00:07]} 12. Bxd6 {[%emt 0:00:02]} Qxd6 {[%emt 0:
00:03]} 13. Be2 {[%emt 0:00:02]} Qf6 {[%emt 0:00:15]} 14. Qd3 {[%emt 0:00:12]}
Nb4 {[%emt 0:00:04]} 15. Qd2 {[%emt 0:00:12]} Bf5 {[%emt 0:00:07]} 16. Rac1 {
[%emt 0:00:08]} Nxc2 {[%emt 0:00:04]} 17. Rxc2 {[%emt 0:00:01]} Bxc2 {[%emt 0:
00:04]} 18. Qxc2 {[%emt 0:00:01]} Qe6 {[%emt 0:00:11]} 19. Bd3 {[%emt 0:00:08]}
Qxa2 {[%emt 0:00:02]} 20. Nxa2 {[%emt 0:00:03]} Rae8 {[%emt 0:00:15]} 21. Bxh7+
{[%emt 0:00:05]} Kh8 {[%emt 0:00:07]} 22. Rxe8 {[%emt 0:00:02]} Rxe8 {[%emt 0:
00:07]} 23. Ng5 {[%emt 0:00:12]} Re1+ {[%emt 0:00:09]} 24. Kh2 {[%emt 0:00:01]}
Ra1 {[%emt 0:00:08]} 25. Nxf7# {[%emt 0:00:03] OnlyHungryKiwi won by checkmate}
1-0

[Event "Fast Chess"]
[Site "ChessKid.com"]
[Date "2020.03.30"]
[Round "2"]
[White "Horvath, Alexander"]
[Black "Li, Tobias"]
[Result "0-1"]
[ECO "C58"]
[WhiteElo "1324"]
[BlackElo "1367"]
[PlyCount "32"]
[EventDate "2020.??.??"]
[TimeControl "600"]
[WhiteClock "0:07:53"]
[BlackClock "0:06:41"]

1. e4 {[%emt 0:00:03]} e5 {[%emt 0:00:03]} 2. Nf3 {[%emt 0:00:03]} Nc6 {
[%emt 0:00:03]} 3. Bc4 {[%emt 0:00:02]} Nf6 {[%emt 0:00:05]} 4. Ng5 {[%emt 0:
00:04]} d5 {[%emt 0:00:04]} 5. exd5 {[%emt 0:00:05]} Na5 {[%emt 0:00:10]} 6.
Bd3 {[%emt 0:00:22]} Nxd5 {[%emt 0:00:05]} 7. Ne4 {[%emt 0:00:15]} Bf5 {
[%emt 0:00:16]} 8. Nbc3 {[%emt 0:00:21]} Nf4 {[%emt 0:00:13]} 9. O-O {[%emt 0:
00:40]} Nxd3 {[%emt 0:00:05]} 10. cxd3 {[%emt 0:00:02]} Qxd3 {[%emt 0:00:04]}
11. Nc5 {[%emt 0:00:22]} Bxc5 {[%emt 0:00:14]} 12. Qa4+ {[%emt 0:00:15]} Nc6 {
[%emt 0:00:07]} 13. Re1 {[%emt 0:00:08]} O-O {[%emt 0:00:17]} 14. Qb3 {[%emt 0:
00:12]} Qd4 {[%emt 0:00:16]} 15. Qxb7 {[%emt 0:00:11]} Qxf2+ {[%emt 0:00:05]}
16. Kh1 {[%emt 0:00:14]} Qxe1# {[%emt 0:00:02] OnlyHungryKiwi won by checkmate}
0-1

[Event "Fast Chess"]
[Site "ChessKid.com"]
[Date "2020.03.30"]
[Round "2"]
[White "Li, Patrick"]
[Black "Rosenkranz, Benjamin"]
[Result "0-1"]
[ECO "C55"]
[WhiteElo "914"]
[BlackElo "1159"]
[PlyCount "54"]
[EventDate "2020.??.??"]
[TimeControl "600"]
[WhiteClock "0:04:39"]
[BlackClock "0:05:56"]

1. e4 {[%emt 0:00:00]} e5 {[%emt 0:00:03]} 2. Nf3 {[%emt 0:00:04]} Nc6 {
[%emt 0:00:05]} 3. Nc3 {[%emt 0:00:05]} Nf6 {[%emt 0:00:11]} 4. Bc4 {[%emt 0:
00:04]} Be7 {[%emt 0:00:08]} 5. Ng5 {[%emt 0:00:03]} d5 {[%emt 0:00:13]} 6.
exd5 {[%emt 0:00:04]} O-O {[%emt 0:00:10]} 7. dxc6 {[%emt 0:00:16]} bxc6 {
[%emt 0:00:05]} 8. Nxf7 {[%emt 0:00:07]} Qd4 {[%emt 0:00:08]} 9. b3 {[%emt 0:
00:20]} Bb4 {[%emt 0:00:58]} 10. Nd6+ {[%emt 0:00:15]} Kh8 {[%emt 0:00:34]} 11.
Nf5 {[%emt 0:00:08]} Bxf5 {[%emt 0:00:10]} 12. O-O {[%emt 0:00:21]} Bxc3 {
[%emt 0:00:05]} 13. dxc3 {[%emt 0:00:05]} Qxc3 {[%emt 0:00:09]} 14. Rb1 {
[%emt 0:00:15]} Qd4 {[%emt 0:00:29]} 15. Bb2 {[%emt 0:00:10]} Qxd1 {[%emt 0:00:
06]} 16. Rbxd1 {[%emt 0:00:05]} Rfe8 {[%emt 0:00:07]} 17. Ba6 {[%emt 0:00:10]}
Bxc2 {[%emt 0:00:17]} 18. Rd2 {[%emt 0:00:13]} Bf5 {[%emt 0:00:05]} 19. Bb7 {
[%emt 0:00:15]} Rad8 {[%emt 0:00:09]} 20. Rxd8 {[%emt 0:00:13]} Rxd8 {[%emt 0:
00:05]} 21. Bxc6 {[%emt 0:00:03]} Rd2 {[%emt 0:00:08]} 22. Bxe5 {[%emt 0:00:10]
} Ne4 {[%emt 0:00:18]} 23. Bxe4 {[%emt 0:00:13]} Bxe4 {[%emt 0:00:03]} 24. Bxc7
{[%emt 0:00:05]} Rxa2 {[%emt 0:00:07]} 25. Re1 {[%emt 0:00:06]} a6 {[%emt 0:00:
20]} 26. Rxe4 {[%emt 0:00:07]} Ra1+ {[%emt 0:00:05]} 27. Re1 {[%emt 0:00:10]}
Rxe1# {[%emt 0:00:04] FineBeamingStage won by checkmate} 0-1

[Event "Fast Chess"]
[Site "ChessKid.com"]
[Date "2020.03.30"]
[Round "3"]
[White "Li, Tobias"]
[Black "Rosenkranz, Benjamin"]
[Result "0-1"]
[ECO "C45"]
[WhiteElo "1317"]
[BlackElo "1174"]
[PlyCount "28"]
[EventDate "2020.??.??"]
[TimeControl "600"]
[WhiteClock "0:06:46"]
[BlackClock "0:08:13"]

1. e4 {[%emt 0:00:00]} e5 {[%emt 0:00:03]} 2. Nf3 {[%emt 0:00:03]} Nc6 {
[%emt 0:00:05]} 3. d4 {[%emt 0:00:02]} exd4 {[%emt 0:00:08]} 4. Nxd4 {[%emt 0:
00:02]} Nxd4 {[%emt 0:00:03]} 5. Qxd4 {[%emt 0:00:03]} d6 {[%emt 0:00:06]} 6.
Bd3 {[%emt 0:00:08]} Be6 {[%emt 0:00:16]} 7. Nc3 {[%emt 0:00:04]} Qd7 {[%emt 0:
01:36]} 8. O-O {[%emt 0:00:11]} O-O-O {[%emt 0:00:02]} 9. Bg5 {[%emt 0:00:09]}
Ne7 {[%emt 0:00:16]} 10. h3 {[%emt 0:00:32]} Bxh3 {[%emt 0:00:10]} 11. Bxe7 {
[%emt 0:00:17]} Bxe7 {[%emt 0:00:05]} 12. gxh3 {[%emt 0:00:06]} Qxh3 {[%emt 0:
00:03]} 13. Qxg7 {[%emt 0:00:08]} Rhg8 {[%emt 0:00:14]} 14. Qxg8 {[%emt 0:00:
03]} Rxg8# {[%emt 0:00:08] FineBeamingStage won by checkmate} 0-1

[Event "Fast Chess"]
[Site "ChessKid.com"]
[Date "2020.03.30"]
[Round "3"]
[White "Li, Patrick"]
[Black "Horvath, Alexander"]
[Result "1-0"]
[ECO "C55"]
[WhiteElo "963"]
[BlackElo "1300"]
[PlyCount "111"]
[EventDate "2020.??.??"]
[TimeControl "600"]
[BlackClock "0:01:57"]

1. e4 {[%emt 0:00:00]} e5 {[%emt 0:00:02]} 2. Nf3 {[%emt 0:00:02]} Nc6 {
[%emt 0:00:05]} 3. Nc3 {[%emt 0:00:00]} Nf6 {[%emt 0:00:02]} 4. Bc4 {[%emt 0:
00:02]} Nh5 {[%emt 0:00:27]} 5. Ng5 {[%emt 0:00:01]} Qxg5 {[%emt 0:00:05]} 6.
d4 {[%emt 0:00:02]} Qxg2 {[%emt 0:00:02]} 7. Rf1 {[%emt 0:00:07]} Nf4 {[%emt 0:
00:26]} 8. Bxf4 {[%emt 0:00:05]} exf4 {[%emt 0:00:05]} 9. Qh5 {[%emt 0:00:08]}
g6 {[%emt 0:00:35]} 10. Qd5 {[%emt 0:00:11]} Nb4 {[%emt 0:00:49]} 11. Qxf7+ {
[%emt 0:00:08]} Kd8 {[%emt 0:00:02]} 12. O-O-O {[%emt 0:00:11]} Bh6 {[%emt 0:
00:22]} 13. Nd5 {[%emt 0:00:19]} Nxd5 {[%emt 0:00:57]} 14. Bxd5 {[%emt 0:00:08]
} f3+ {[%emt 0:00:25]} 15. Kb1 {[%emt 0:00:17]} c6 {[%emt 0:00:26]} 16. Bxc6 {
[%emt 0:00:21]} dxc6 {[%emt 0:00:08]} 17. Qf6+ {[%emt 0:00:05]} Kc7 {[%emt 0:
00:05]} 18. Qxh8 {[%emt 0:00:06]} Qg5 {[%emt 0:00:32]} 19. Qxh7+ {[%emt 0:00:
06]} Kb6 {[%emt 0:00:04]} 20. Rg1 {[%emt 0:00:16]} Qf4 {[%emt 0:00:31]} 21.
Rxg6 {[%emt 0:00:10]} Bf8 {[%emt 0:00:31]} 22. Rgg1 {[%emt 0:00:31]} Be6 {
[%emt 0:00:29]} 23. a3 {[%emt 0:00:21]} Rd8 {[%emt 0:00:12]} 24. Qh8 {[%emt 0:
01:01]} Be7 {[%emt 0:00:14]} 25. Qe5 {[%emt 0:00:11]} Qf7 {[%emt 0:00:21]} 26.
Qg3 {[%emt 0:00:26]} Ba2+ {[%emt 0:00:12]} 27. Ka1 {[%emt 0:00:08]} Bd6 {
[%emt 0:00:35]} 28. b3 {[%emt 0:00:05]} Bxb3 {[%emt 0:00:04]} 29. cxb3 {
[%emt 0:00:05]} Qxb3 {[%emt 0:00:03]} 30. Rb1 {[%emt 0:00:08]} Qxb1+ {[%emt 0:
00:10]} 31. Rxb1+ {[%emt 0:00:08]} Kc7 {[%emt 0:00:05]} 32. Qxf3 {[%emt 0:00:
06]} Bxh2 {[%emt 0:00:04]} 33. Qf7+ {[%emt 0:00:23]} Kc8 {[%emt 0:00:01]} 34.
Qf5+ {[%emt 0:00:07]} Kb8 {[%emt 0:00:01]} 35. Rh1 {[%emt 0:00:20]} Bc7 {
[%emt 0:00:05]} 36. Qf6 {[%emt 0:00:05]} Ba5 {[%emt 0:00:20]} 37. Rh8 {[%emt 0:
00:05]} Rxh8 {[%emt 0:00:03]} 38. Qxh8+ {[%emt 0:00:05]} Kc7 {[%emt 0:00:01]}
39. Qg7+ {[%emt 0:00:09]} Kb6 {[%emt 0:00:01]} 40. Qe5 {[%emt 0:00:02]} a6 {
[%emt 0:00:01]} 41. d5 {[%emt 0:00:03]} cxd5 {[%emt 0:00:02]} 42. exd5 {
[%emt 0:00:01]} Ka7 {[%emt 0:00:01]} 43. d6 {[%emt 0:00:03]} Ka8 {[%emt 0:00:
02]} 44. d7 {[%emt 0:00:03]} Ka7 {[%emt 0:00:03]} 45. Qxa5 {[%emt 0:00:02]} b6
{[%emt 0:00:02]} 46. d8=Q {[%emt 0:00:03]} bxa5 {[%emt 0:00:02]} 47. Qxa5 {
[%emt 0:00:03]} Kb7 {[%emt 0:00:01]} 48. Qa4 {[%emt 0:00:02]} Ka7 {[%emt 0:00:
01]} 49. Qxa6+ {[%emt 0:00:03]} Kxa6 {[%emt 0:00:02]} 50. f4 {[%emt 0:00:03]}
Kb6 {[%emt 0:00:01]} 51. f5 {[%emt 0:00:02]} Kc6 {[%emt 0:00:00]} 52. a4 {
[%emt 0:00:06]} Kd7 {[%emt 0:00:01]} 53. a5 {[%emt 0:00:06]} Ke7 {[%emt 0:00:
00]} 54. a6 {[%emt 0:00:04]} Kf6 {[%emt 0:00:00]} 55. a7 {[%emt 0:00:03]} Kxf5
{[%emt 0:00:00]} 56. a8=Q {[%emt 0:00:04] WideClassyQuiz won on time} 1-0

[Event "Fast Chess"]
[Site "ChessKid.com"]
[Date "2020.03.31"]
[Round "1"]
[White "Li, Patrick"]
[Black "Sasse, Gabriel"]
[Result "1-0"]
[ECO "C55"]
[WhiteElo "1006"]
[BlackElo "1208"]
[PlyCount "39"]
[EventDate "2020.??.??"]
[TimeControl "180"]
[WhiteClock "0:01:05"]
[BlackClock "0:01:29"]

1. e4 {[%emt 0:00:10]} e5 {[%emt 0:00:00]} 2. Nf3 {[%emt 0:00:03]} Nc6 {
[%emt 0:00:01]} 3. Nc3 {[%emt 0:00:04]} Bc5 {[%emt 0:00:01]} 4. Bc4 {[%emt 0:
00:06]} Nf6 {[%emt 0:00:01]} 5. Ng5 {[%emt 0:00:03]} d5 {[%emt 0:00:08]} 6.
exd5 {[%emt 0:00:04]} Nxd5 {[%emt 0:00:02]} 7. Nxf7 {[%emt 0:00:06]} Qd7 {
[%emt 0:00:08]} 8. Nxh8 {[%emt 0:00:02]} Qf5 {[%emt 0:00:14]} 9. O-O {[%emt 0:
00:12]} Bd6 {[%emt 0:00:09]} 10. h3 {[%emt 0:00:05]} Qf4 {[%emt 0:00:05]} 11.
d3 {[%emt 0:00:03]} Qf8 {[%emt 0:00:21]} 12. Bxd5 {[%emt 0:00:08]} Qxh8 {
[%emt 0:00:04]} 13. Bxc6+ {[%emt 0:00:02]} Bd7 {[%emt 0:00:04]} 14. Bxd7+ {
[%emt 0:00:03]} Kxd7 {[%emt 0:00:02]} 15. Bg5 {[%emt 0:00:03]} Qe8 {[%emt 0:00:
07]} 16. Qg4+ {[%emt 0:00:02]} Kc6 {[%emt 0:00:03]} 17. b4 {[%emt 0:00:03]} Qg6
{[%emt 0:00:06]} 18. Be3 {[%emt 0:00:06]} a6 {[%emt 0:00:10]} 19. a4 {[%emt 0:
00:04]} b5 {[%emt 0:00:09]} 20. axb5+ {[%emt 0:00:02] WideClassyQuiz won on
time} 1-0